bitfinex-derivatives/quotes_SOLF0:USTF0_20250625
["timestamp","ask_amount","ask_price","bid_price","bid_amount"]
[1750829685472,3.41366218,145.27,145.23,35.12]
[1750829685667,3.41366218,145.27,145.2,43.02286218]
[1750829685868,3.41366218,145.27,145.24,6.8813]
[1750829686768,10.29396218,145.27,145.24,6.8813]
[1750829686970,3.41366218,145.27,145.25,6.8811]
[1750829687271,3.41366218,145.27,145.2,43.02286218]
[1750829687872,3.41366218,145.27,145.25,6.8806]
[1750829688068,3.41366218,145.27,145.2,43.02286218]
[1750829688268,35.1,145.28,145.2,43.02286218]
[1750829688472,35.1,145.28,145.21,62.0]
[1750829688865,35.1,145.28,145.27,6.8802]
[1750829689276,35.1,145.28,145.22,3.41366218]
[1750829689277,35.1,145.3,145.22,3.41366218]
[1750829689874,35.1,145.3,145.29,6.8791]
[1750829692180,38.51366218,145.3,145.24,40.84156218]
[1750829692384,35.1,145.3,145.24,37.4279]
[1750829692585,38.51366218,145.3,145.24,37.4279]
[1750829693985,38.51366218,145.3,145.27,6.8797]
[1750829694584,38.51366218,145.3,145.28,6.8794]
[1750829694782,35.1,145.3,145.24,40.84156218]
[1750829695389,35.1,145.3,145.29,6.8792]
[1750829698993,38.41366218,145.33,145.26,3.41366218]
[1750829699395,3.41366218,145.33,145.26,3.41366218]
[1750829699592,38.41366218,145.33,145.26,3.41366218]
[1750829700097,38.41366218,145.33,145.31,6.8779]
[1750829700702,45.29106218,145.33,145.3,6.8785]
[1750829701498,45.29106218,145.33,145.31,6.8782]
[1750829701685,45.29106218,145.33,145.26,3.41366218]
[1750829701997,45.29106218,145.33,145.31,6.8782]
[1750829702601,598.19366218,145.35,145.26,3.41366218]
[1750829702803,35.0,145.34,145.28,3.41366218]
[1750829703394,35.0,145.34,145.33,6.8773]
[1750829705002,39.94729683,145.34,145.33,6.8773]
[1750829705408,39.94729683,145.34,145.28,38.41366218]
[1750829705706,35.0,145.34,145.3,3.41366218]
[1750829706000,6.8763,145.36,145.33,6.877]
[1750829706199,38.41366218,145.37,145.3,3.41366218]
[1750829706596,35.0,145.37,145.3,3.41366218]
[1750829706798,41.8759,145.37,145.3,7.96706218]
[1750829707001,35.0,145.37,145.3,7.96706218]
[1750829707201,4.98323255,145.36,145.3,7.96706218]
[1750829707796,4.98323255,145.35,145.29,2.2235]
[1750829708004,4.51825551,145.35,145.28,38.41366218]
[1750829708302,6.8776,145.33,145.3,6.8785]
[1750829709799,3.41366218,145.34,145.28,38.41366218]
[1750829710001,5.00259107,145.33,145.28,38.41366218]
[1750829710201,3.41366218,145.34,145.28,38.41366218]
[1750829710403,40.00256088,145.33,145.27,8.53667989]
[1750829710714,40.00256088,145.33,145.25,15.31357989]
[1750829710715,12.93950264,145.32,145.25,15.31357989]
[1750829711004,12.93950264,145.32,145.26,6.8804]
[1750829711005,6.8792,145.29,145.26,6.8804]
[1750829711198,3.41366218,145.32,145.25,8.53667989]
[1750829711395,5.0027872,145.31,145.25,8.53667989]
[1750829711597,9.54433978,145.3,145.25,8.53667989]
[1750829711799,3.41366218,145.32,145.25,8.53667989]
[1750829712101,6.8789,145.3,145.27,6.8801]
[1750829713411,6.8789,145.3,145.26,6.8805]
[1750829715108,6.8793,145.29,145.26,6.8805]
[1750829716011,35.0,145.33,145.26,6.8805]
[1750829716206,6.879,145.3,145.27,6.8801]
[1750829716406,4.99835318,145.29,145.27,6.8801]
[1750829716602,6.879,145.3,145.27,6.8801]
[1750829717609,5.0008532,145.29,145.27,6.8801]
[1750829717911,6.879,145.3,145.27,6.8801]
[1750829718108,5.0009375,145.29,145.27,6.8801]
[1750829718309,6.879,145.3,145.27,6.8801]
[1750829718510,5.00097508,145.29,145.27,6.8801]
[1750829718699,6.879,145.3,145.27,6.8801]
[1750829718905,5.00097541,145.29,145.27,6.8801]
[1750829719211,6.879,145.3,145.27,6.8801]
[1750829719512,5.00151056,145.29,145.27,6.8801]
[1750829719711,6.879,145.3,145.27,6.8801]
[1750829719912,4.99379194,145.29,145.28,6.8797]
[1750829721216,4.99379194,145.29,145.27,6.8799]
[1750829721414,6.879,145.3,145.27,6.8799]
[1750829721615,4.99403745,145.29,145.27,6.8799]
[1750829721816,6.879,145.3,145.27,6.8799]
[1750829722013,4.99403745,145.29,145.27,6.8799]
[1750829722209,6.879,145.3,145.27,6.8799]
[1750829722410,4.99458797,145.29,145.28,6.8795]
[1750829723417,4.99458797,145.29,145.27,6.8799]
[1750829723718,6.8793,145.29,145.27,6.8799]
[1750829724018,4.9947122,145.28,145.26,6.8803]
[1750829724316,41.8197,145.29,145.26,6.8803]
[1750829724518,4.99468469,145.28,145.26,6.8803]
[1750829724721,6.8797,145.28,145.26,6.8803]
[1750829725111,34.94,145.29,145.26,6.8803]
[1750829725321,4.99488553,145.28,145.26,6.8803]
[1750829725518,41.8194,145.29,145.26,6.8803]
[1750829725714,4.99488508,145.28,145.26,6.8803]
[1750829725914,41.8194,145.29,145.26,6.8803]
[1750829726120,4.99489241,145.28,145.26,6.8803]
[1750829726319,41.8194,145.29,145.26,6.8803]
[1750829726520,4.99489344,145.28,145.26,6.8803]
[1750829726720,41.8194,145.29,145.26,6.8803]
[1750829727019,4.99473519,145.28,145.26,6.8803]
[1750829727318,41.8194,145.29,145.26,6.8803]
[1750829727520,4.99473519,145.28,145.26,6.8803]
[1750829727710,41.8194,145.29,145.26,6.8803]
[1750829727914,4.99474529,145.28,145.26,6.8803]
[1750829728115,41.8194,145.29,145.26,6.8803]
[1750829728316,4.99474529,145.28,145.26,6.8803]
[1750829728614,41.8194,145.29,145.26,6.8803]
[1750829728814,4.99087378,145.28,145.26,6.8803]
[1750829729018,41.8194,145.29,145.26,6.8803]
[1750829729219,4.99107411,145.28,145.26,6.8803]
[1750829729419,41.8194,145.29,145.26,6.8803]
[1750829729715,4.99108421,145.28,145.26,6.8803]
[1750829729921,41.8194,145.29,145.26,6.8803]
[1750829730220,4.99100966,145.28,145.26,6.8803]
[1750829730422,41.8194,145.29,145.26,6.8803]
[1750829730622,4.99100966,145.28,145.26,6.8803]
[1750829730818,41.8194,145.29,145.26,6.8803]
[1750829731023,4.99100966,145.28,145.26,6.8803]
[1750829731223,41.8194,145.29,145.26,6.8803]
[1750829731524,4.9909721,145.28,145.26,6.8803]
[1750829731711,41.8194,145.29,145.26,6.8803]
[1750829731912,4.9909822,145.28,145.26,6.8803]
[1750829732117,41.8194,145.29,145.26,6.8803]
[1750829732313,4.99109711,145.28,145.26,6.8803]
[1750829732521,41.8194,145.29,145.26,6.8803]
[1750829732717,4.99109711,145.28,145.26,6.8803]
[1750829732918,34.94,145.29,145.27,6.8799]
[1750829735324,34.94,145.29,145.28,6.8797]
[1750829735525,44.45113612,145.29,145.28,6.8797]
[1750829736230,9.51113612,145.29,145.28,6.8797]
[1750829736433,34.94,145.32,145.31,6.8783]
[1750829736628,44.44066736,145.32,145.31,6.8783]
[1750829737226,44.44066736,145.32,145.3,6.8785]
[1750829737424,9.50066736,145.31,145.3,6.8785]
[1750829737731,9.50066701,145.31,145.3,6.8785]
[1750829738336,9.50067019,145.31,145.3,6.8785]
[1750829738734,9.50067019,145.31,145.28,6.8794]
[1750829738929,38.35366218,145.32,145.26,8.53667989]
[1750829738930,9.50067019,145.3,145.26,8.53667989]
[1750829739130,4.98285193,145.29,145.26,8.53667989]
[1750829739331,10.29266218,145.3,145.27,6.8798]
[1750829739531,4.99110506,145.29,145.27,6.8798]
[1750829739832,10.29266218,145.3,145.27,6.8798]
[1750829740131,9.51206405,145.29,145.28,6.8797]
[1750829741136,4.9911555,145.29,145.28,6.8797]
[1750829741336,9.51206405,145.29,145.28,6.8797]
[1750829743937,9.50810721,145.29,145.27,6.8801]
[1750829744146,38.35366218,145.32,145.27,6.8801]
[1750829744337,9.5081727,145.31,145.27,6.8801]
[1750829744532,9.5081727,145.3,145.27,6.8801]
[1750829744733,9.5081727,145.29,145.27,6.8801]
[1750829745036,6.879,145.3,145.27,6.8801]
[1750829745228,9.5082042,145.29,145.27,6.8801]
[1750829745427,6.879,145.3,145.27,6.8801]
[1750829745640,9.5088827,145.29,145.27,6.8801]
[1750829745827,6.879,145.3,145.27,6.8801]
[1750829746028,4.98765034,145.29,145.28,6.8797]
[1750829746229,38.35366218,145.32,145.26,11.95034207]
[1750829746435,9.50853864,145.31,145.26,11.95034207]
[1750829746636,9.50853864,145.3,145.26,11.95034207]
[1750829746832,45.23176218,145.32,145.29,6.8789]
[1750829747242,9.50838652,145.31,145.27,8.53667989]
[1750829747539,34.94,145.32,145.3,6.8783]
[1750829747739,9.50826014,145.31,145.3,6.8783]
[1750829750042,9.51123939,145.31,145.3,6.8783]
[1750829751543,9.45254522,145.31,145.3,6.8783]
[1750829751745,4.99198628,145.31,145.3,6.8783]
[1750829753245,4.99275084,145.31,145.3,6.8783]
[1750829755639,34.94,145.32,145.31,6.8783]
[1750829755841,39.93429168,145.32,145.31,6.8783]
[1750829757245,4.99429168,145.32,145.31,6.8783]
[1750829757638,9.45897192,145.32,145.31,6.8783]
[1750829758950,10.29066218,145.34,145.31,6.8783]
[1750829759250,9.46944569,145.33,145.31,6.8783]
[1750829759452,9.46944569,145.32,145.31,6.8783]
[1750829760048,5.00174089,145.32,145.31,6.8783]
[1750829760255,5.00174089,145.32,145.3,6.8786]
[1750829760453,3.41366218,145.34,145.28,8.53667989]
[1750829760657,9.4665181,145.33,145.28,8.53667989]
[1750829760852,9.4665181,145.32,145.28,8.53667989]
[1750829761052,3.41366218,145.34,145.28,8.53667989]
[1750829761053,5.00033826,145.31,145.28,8.53667989]
[1750829761256,3.41366218,145.34,145.29,6.8791]
[1750829761556,9.46675044,145.33,145.29,6.8791]
[1750829761758,16.34476475,145.32,145.29,6.8791]
[1750829762054,9.46676475,145.31,145.29,6.8791]
[1750829762256,5.00057009,145.3,145.29,6.8791]
[1750829763158,34.86,145.35,145.29,8.53667989]
[1750829763361,9.46617073,145.34,145.29,8.53667989]
[1750829763657,9.46617073,145.33,145.32,6.8778]
[1750829764250,9.46575433,145.33,145.32,6.8778]
[1750829767649,9.4472391,145.33,145.32,6.8778]
[1750829768558,9.4472391,145.33,145.31,6.8782]
[1750829768855,4.997549,145.32,145.31,6.8782]
[1750829769056,6.8769,145.34,145.31,6.8782]
[1750829769263,9.45082665,145.33,145.31,6.8782]
[1750829769462,5.00139777,145.32,145.31,6.8782]
[1750829770559,5.00110093,145.32,145.31,6.8782]
[1750829771356,5.00110093,145.32,145.3,6.8786]
[1750829771659,6.8776,145.33,145.3,6.8786]
[1750829771858,5.0008837,145.32,145.3,6.8786]
[1750829772058,6.8776,145.33,145.3,6.8786]
[1750829772361,5.0008837,145.32,145.3,6.8786]
[1750829772561,6.8776,145.33,145.3,6.8786]
[1750829772760,5.00089378,145.32,145.3,6.8786]
[1750829772962,6.8776,145.33,145.31,6.8782]
[1750829773148,6.8771,145.34,145.31,6.8782]
[1750829773353,5.00435801,145.33,145.31,6.8782]
[1750829773552,6.8771,145.34,145.32,6.8777]
[1750829773754,5.00426973,145.33,145.32,6.8777]
[1750829774449,5.00426973,145.33,145.31,6.878]
[1750829774655,5.00426973,145.32,145.31,6.878]
[1750829775055,6.8771,145.34,145.31,6.878]
[1750829775251,5.00413869,145.33,145.31,6.878]
[1750829775451,6.8771,145.34,145.31,6.878]
[1750829775656,5.00413857,145.33,145.31,6.878]
[1750829775856,6.8771,145.34,145.31,6.878]
[1750829776051,5.0041357,145.33,145.31,6.878]
[1750829776256,9.0579403,145.34,145.31,6.878]
[1750829776458,5.00409245,145.33,145.31,6.878]
[1750829776656,9.0579403,145.34,145.31,6.878]
[1750829776861,5.00409245,145.33,145.31,6.878]
[1750829777064,9.0579403,145.34,145.31,6.878]
[1750829777265,5.00409245,145.33,145.31,6.878]
[1750829777565,9.0579403,145.34,145.31,6.878]
[1750829777864,11.88206345,145.33,145.3,9.0594403]
[1750829778061,6.8773,145.33,145.3,6.8786]
[1750829780170,6.8773,145.33,145.31,6.8782]
[1750829781270,6.8773,145.33,145.3,6.8785]
[1750829783071,6.8773,145.33,145.31,6.8782]
[1750829784475,6.8773,145.33,145.29,10.71767074]
[1750829784666,9.05799085,145.34,145.29,10.71767074]
[1750829784867,5.00650669,145.33,145.29,10.71767074]
[1750829785082,9.05799085,145.34,145.29,10.71767074]
[1750829785264,5.00646861,145.33,145.31,6.878]
[1750829785562,9.05799085,145.34,145.31,6.878]
[1750829785765,5.00638772,145.33,145.31,6.878]
[1750829785965,9.05799085,145.34,145.31,6.878]
[1750829786162,5.00619553,145.33,145.31,6.878]
[1750829786366,9.05799085,145.34,145.31,6.878]
[1750829786567,5.00619553,145.33,145.31,6.878]
[1750829786766,9.05799085,145.34,145.31,6.878]
[1750829786967,5.00619553,145.33,145.31,6.878]
[1750829787170,9.05799085,145.34,145.31,6.878]
[1750829787472,9.46405209,145.33,145.31,6.878]
[1750829787672,5.00840047,145.32,145.31,6.878]
[1750829787868,5.00840047,145.32,145.3,6.8785]
[1750829788069,6.8773,145.33,145.3,6.8785]
[1750829788270,5.00847389,145.32,145.3,6.8785]
[1750829788471,6.8773,145.33,145.3,6.8785]
[1750829788668,5.00847389,145.32,145.3,6.8785]
[1750829788874,6.8773,145.33,145.3,6.8785]
[1750829789074,5.00848186,145.32,145.3,6.8785]
[1750829789275,9.05799085,145.34,145.29,10.71767074]
[1750829789476,5.00840093,145.33,145.3,8.53667989]
[1750829789684,9.05799085,145.34,145.3,8.53667989]
[1750829789878,5.00840047,145.33,145.31,6.878]
[1750829790078,9.05799085,145.34,145.31,6.878]
[1750829790379,9.47130465,145.33,145.31,6.878]
[1750829790578,5.01223731,145.32,145.31,6.878]
[1750829791082,5.01224744,145.32,145.31,6.878]
[1750829792386,5.01224744,145.32,145.3,17.59617074]
[1750829792582,6.8774,145.33,145.3,15.41517989]
[1750829792783,5.01232809,145.32,145.3,15.41517989]
[1750829792984,6.8774,145.33,145.3,15.41517989]
[1750829793184,5.01232809,145.32,145.31,6.8783]
[1750829795788,5.01232809,145.32,145.3,17.59617074]
[1750829795989,6.8774,145.33,145.3,17.59617074]
[1750829796180,5.01315396,145.32,145.3,17.59617074]
[1750829796381,6.8774,145.33,145.3,17.59617074]
[1750829796687,11.61970498,145.32,145.29,8.53667989]
[1750829796988,2.18099085,145.3,145.27,8.53667989]
[1750829797185,9.06069085,145.28,145.27,8.53667989]
[1750829797386,9.06249578,145.28,145.27,8.53667989]
[1750829797589,14.04808212,145.28,145.26,8.53667989]
[1750829797793,2.18279578,145.27,145.26,8.53667989]
[1750829798296,2.18279578,145.27,145.26,6.8806]
[1750829798992,9.06249578,145.28,145.26,6.8806]
[1750829799786,41.6594,145.29,145.26,6.8806]
[1750829799985,43.84219578,145.29,145.27,6.8802]
[1750829801580,43.84219578,145.29,145.26,6.8803]
[1750829802187,2.18279578,145.28,145.26,6.8803]
[1750829805393,2.18279578,145.27,145.24,8.53667989]
[1750829805591,2.18279578,145.27,145.21,4.6351]
[1750829805592,2.18279578,145.25,145.23,8.53667989]
[1750829805795,2.18279578,145.24,145.22,8.53667989]
[1750829806096,2.18279578,145.25,145.22,8.53667989]
[1750829806293,2.18279578,145.25,145.21,10.71947567]
[1750829806692,2.18279578,145.26,145.22,10.71947567]
[1750829807095,2.18279578,145.26,145.23,6.8817]
[1750829807489,2.18279578,145.25,145.23,6.8817]
[1750829807796,2.18279578,145.25,145.22,6.8823]
[1750829808193,3.41169682,145.27,145.22,6.8823]
[1750829808392,6.8814,145.25,145.21,6.8826]
[1750829808890,6.8814,145.25,145.22,6.8825]
[1750829810799,6.8809,145.26,145.22,6.8825]
[1750829811895,6.8809,145.26,145.23,6.882]
[1750829812097,10.29199682,145.27,145.2,8.53667989]
[1750829812296,6.8803,145.27,145.21,11.94837671]
[1750829812603,6.8803,145.27,145.24,6.8812]
[1750829813707,9.0794,145.28,145.24,6.8812]
[1750829815697,45.07109682,145.29,145.21,11.94837671]
[1750829816003,34.78,145.29,145.23,3.41169682]
[1750829816503,34.78,145.29,145.23,38.13169682]
[1750829816709,34.78,145.29,145.23,46.66837671]
[1750829817407,34.78,145.29,145.27,6.8798]
[1750829817603,34.78,145.29,145.23,46.66837671]
[1750829818103,34.78,145.29,145.28,6.8797]
[1750829818303,4.92270415,145.31,145.25,3.41169682]
[1750829818504,639.40969682,145.32,145.25,3.41169682]
[1750829818808,4.92274032,145.31,145.25,3.41169682]
[1750829819001,639.40969682,145.32,145.25,3.41169682]
[1750829819202,4.92274032,145.31,145.29,6.879]
[1750829819404,639.40969682,145.32,145.29,6.879]
[1750829819605,4.92274032,145.31,145.29,6.879]
[1750829819802,6.8783,145.31,145.29,6.879]
[1750829820003,11.80011134,145.31,145.29,6.879]
[1750829820803,6.8783,145.31,145.29,6.879]
[1750829821003,639.40969682,145.32,145.29,6.879]
[1750829821205,4.92249715,145.31,145.29,6.879]
[1750829822910,639.40969682,145.32,145.29,6.879]
[1750829823111,4.92249598,145.31,145.29,6.879]
[1750829823311,639.40969682,145.32,145.29,6.879]
[1750829823514,4.92249598,145.31,145.29,6.879]
[1750829823811,639.40969682,145.32,145.29,6.879]
[1750829824211,4.93354958,145.31,145.29,6.879]
[1750829824416,639.40969682,145.32,145.29,6.879]
[1750829825005,629.12,145.32,145.3,6.8786]
[1750829825207,34.72,145.32,145.27,3.41169682]
[1750829825606,34.72,145.32,145.31,6.8783]
[1750829827304,34.72,145.32,145.3,6.8785]
[1750829828217,41.5978,145.32,145.3,6.8785]
[1750829828613,34.72,145.32,145.3,6.8785]
[1750829829013,34.72,145.32,145.31,6.8783]
[1750829829612,7.82447204,145.36,145.32,6.8775]
[1750829829613,44.06382058,145.35,145.32,6.8775]
[1750829829823,4.93104536,145.34,145.32,6.8775]
[1750829830017,46.00917522,145.35,145.32,6.8775]
[1750829830320,4.9317233,145.34,145.32,6.8775]
[1750829830510,46.00917522,145.35,145.32,6.8775]
[1750829830711,4.93170114,145.34,145.33,6.8773]
[1750829831021,9.34447636,145.34,145.33,6.8773]
[1750829832419,4.41277522,145.34,145.33,6.8773]
[1750829832614,46.00917522,145.35,145.32,6.8776]
[1750829832922,4.93975258,145.34,145.32,6.8776]
[1750829833120,46.01342812,145.35,145.32,6.8776]
[1750829833318,4.93975258,145.34,145.32,6.8776]
[1750829833519,46.01342812,145.35,145.32,6.8776]
[1750829833716,4.94367886,145.34,145.32,6.8776]
[1750829833917,46.01342812,145.35,145.32,6.8776]
[1750829834117,4.94367886,145.34,145.32,6.8776]
[1750829834414,2.18074477,145.34,145.32,6.8776]
[1750829835017,36.90074477,145.35,145.33,6.8773]
[1750829835219,4.94376501,145.34,145.33,6.8773]
[1750829836025,34.72,145.35,145.34,6.8768]
[1750829836223,39.66463377,145.35,145.34,6.8768]
[1750829837424,39.66463377,145.35,145.33,6.8771]
[1750829837626,34.72,145.35,145.33,6.8771]
[1750829838429,34.72,145.35,145.34,6.8768]
[1750829840434,2.18074477,145.36,145.35,6.8764]
[1750829840634,7.13184174,145.36,145.35,6.8764]
[1750829841926,7.130576,145.36,145.35,6.8764]
[1750829842125,2.18074477,145.36,145.35,6.8764]
[1750829842328,7.13031533,145.36,145.35,6.8764]
[1750829842532,4.94957056,145.36,145.35,6.8764]
[1750829843233,41.32608104,145.38,145.36,6.8757]
[1750829843432,4.94736818,145.37,145.36,6.8757]
[1750829843935,7.12811295,145.37,145.35,6.8761]
[1750829844235,6.60608104,145.37,145.35,6.8761]
[1750829844428,2.18074477,145.37,145.35,6.8761]
[1750829845943,7.13081438,145.37,145.35,6.8761]
[1750829846142,2.18074477,145.37,145.35,6.8761]
[1750829846443,2.18074477,145.36,145.35,6.8761]
[1750829846644,2.18074477,145.36,145.34,6.8766]
[1750829847341,2.18074477,145.35,145.28,15.51307989]
[1750829847537,2.18074477,145.34,145.3,2.18074477]
[1750829847739,2.18074477,145.34,145.31,6.878]
[1750829848435,6.8768,145.35,145.31,6.878]
[1750829848633,9.05764477,145.34,145.31,6.878]
[1750829849641,2.18074477,145.34,145.3,2.18074477]
[1750829849841,9.05744477,145.35,145.3,2.18074477]
[1750829850245,6.8767,145.35,145.29,3.40724678]
[1750829852139,6.8767,145.35,145.31,6.8779]
[1750829852844,6.8767,145.35,145.32,6.8777]
[1750829853448,41.5369,145.34,145.28,6.9764]
[1750829854340,41.5369,145.34,145.31,6.8782]
[1750829854735,46.47845626,145.34,145.31,6.8782]
[1750829855248,46.47858948,145.34,145.31,6.8782]
[1750829855748,41.5369,145.34,145.31,6.8782]
[1750829856648,45.96158028,145.34,145.31,6.8782]
[1750829856845,41.5369,145.34,145.31,6.8782]
[1750829857047,45.96158028,145.34,145.31,6.8782]
[1750829857250,41.5369,145.34,145.31,6.8782]
[1750829857554,45.96158028,145.34,145.31,6.8782]
[1750829857851,41.5369,145.34,145.31,6.8782]
[1750829858147,45.96158028,145.34,145.31,6.8782]
[1750829858351,41.5369,145.34,145.31,6.8782]
[1750829858544,45.96158028,145.34,145.31,6.8782]
[1750829858749,4.96021778,145.33,145.31,6.8782]
[1750829858949,45.96158028,145.34,145.31,6.8782]
[1750829859154,4.95253114,145.33,145.31,6.8782]
[1750829859348,45.96158028,145.34,145.31,6.8782]
[1750829859548,4.95255843,145.33,145.31,6.8782]
[1750829859749,41.5369,145.34,145.31,6.8782]
[1750829859952,4.95350867,145.33,145.31,6.8782]
[1750829860147,34.66,145.34,145.3,3.4076411]
[1750829860452,44.05080138,145.36,145.3,11.94432099]
[1750829860754,4.95220959,145.35,145.33,6.877]
[1750829860956,45.97449179,145.36,145.33,6.877]
[1750829861352,4.95292478,145.35,145.34,6.8768]
[1750829861953,34.66,145.36,145.35,6.8764]
[1750829863266,6.881,145.37,145.36,6.8759]
[1750829865357,11.32524959,145.38,145.36,6.8759]
[1750829865758,6.881,145.38,145.36,6.8759]
[1750829866059,11.84528559,145.37,145.36,6.8759]
[1750829867059,11.84528559,145.37,145.35,6.8762]
[1750829867260,6.881,145.37,145.35,6.8762]
[1750829868655,6.881,145.38,145.35,6.8762]
[1750829868961,6.881,145.37,145.35,6.8762]
[1750829871666,4.96916686,145.36,145.35,6.8762]
[1750829873058,11.84516686,145.36,145.33,6.8772]
[1750829873255,7.14901149,145.35,145.31,2.1798059]
[1750829873461,2.1798059,145.35,145.31,10.71648579]
[1750829873762,4.97065374,145.34,145.32,6.8777]
[1750829873964,9.0564059,145.35,145.32,6.8777]
[1750829874163,4.97065945,145.34,145.32,6.8777]
[1750829874462,9.0564059,145.35,145.32,6.8777]
[1750829874763,4.97082359,145.34,145.32,6.8777]
[1750829875061,9.0564059,145.35,145.32,6.8777]
[1750829875261,4.97211184,145.34,145.32,6.8777]
[1750829875462,9.0564059,145.35,145.32,6.8777]
[1750829875665,4.97249773,145.34,145.32,6.8777]
[1750829875859,9.0564059,145.35,145.32,6.8777]
[1750829877069,2.1798059,145.35,145.3,2.1798059]
[1750829877774,9.0562059,145.35,145.32,6.8775]
[1750829881973,2.1798059,145.35,145.3,2.1798059]
[1750829882671,2.1798059,145.35,145.3,10.71648579]
[1750829883077,9.0562059,145.35,145.33,6.8773]
[1750829883371,2.1798059,145.35,145.33,6.8773]
[1750829885279,4.44198311,145.34,145.33,6.8773]
[1750829885880,9.41078291,145.34,145.33,6.8773]
[1750829886676,4.9687998,145.34,145.33,6.8773]
[1750829886872,9.4107608,145.34,145.33,6.8773]
[1750829887075,4.9687998,145.34,145.33,6.8773]
[1750829887472,4.97338807,145.34,145.33,6.8773]
[1750829889173,9.41402354,145.34,145.33,6.8773]
[1750829889377,36.7998059,145.36,145.34,6.8766]
[1750829889570,9.41377487,145.35,145.34,6.8766]
[1750829890484,9.41377412,145.35,145.34,6.8766]
[1750829892076,9.41377412,145.35,145.33,6.8771]
[1750829892382,43.6758059,145.36,145.33,6.8771]
[1750829892580,9.41334383,145.35,145.33,6.8771]
[1750829892785,43.6758059,145.36,145.33,6.8771]
[1750829892980,9.41334383,145.35,145.33,6.8771]
[1750829893282,43.6758059,145.36,145.33,6.8771]
[1750829893482,9.41378892,145.35,145.33,6.8771]
[1750829893682,43.6758059,145.36,145.33,6.8771]
[1750829893880,9.41378892,145.35,145.33,6.8771]
[1750829894080,6.8764,145.35,145.33,6.8771]
[1750829894281,6.8764,145.35,145.32,9.0574059]
[1750829895488,4.97706408,145.34,145.32,9.0574059]
[1750829895680,6.8764,145.35,145.32,9.0574059]
[1750829895879,4.97688455,145.34,145.32,9.0574059]
[1750829896185,36.7998059,145.36,145.31,2.1798059]
[1750829896384,9.42059201,145.35,145.32,2.1798059]
[1750829896576,4.97717363,145.34,145.32,2.1798059]
[1750829896781,36.7998059,145.36,145.32,2.1798059]
[1750829897079,9.42108076,145.35,145.32,2.1798059]
[1750829897278,9.42108076,145.34,145.32,9.0573059]
[1750829897472,6.8767,145.35,145.32,9.0573059]
[1750829897671,9.42104054,145.34,145.32,9.0573059]
[1750829897875,6.8767,145.35,145.32,9.0573059]
[1750829898077,9.42104054,145.34,145.32,9.0573059]
[1750829898278,6.8767,145.35,145.32,9.0573059]
[1750829898473,9.42351609,145.34,145.32,9.0573059]
[1750829898687,6.8769,145.34,145.31,2.18025676]
[1750829898881,4.97735638,145.33,145.31,2.18025676]
[1750829899082,6.8769,145.34,145.31,2.18025676]
[1750829899282,4.98120187,145.33,145.31,2.18025676]
[1750829899483,6.8769,145.34,145.31,9.05825676]
[1750829899684,4.98120187,145.33,145.31,9.05825676]
[1750829899883,6.8769,145.34,145.31,9.05825676]
[1750829900083,4.98145693,145.33,145.31,9.05825676]
[1750829900288,6.8769,145.34,145.31,9.05825676]
[1750829900489,4.98146699,145.33,145.31,9.05825676]
[1750829900789,6.8769,145.34,145.31,9.05825676]
[1750829900989,7.16172375,145.33,145.29,8.53667989]
[1750829901178,11.60841037,145.32,145.28,2.18025676]
[1750829901382,9.42815361,145.31,145.27,10.71693665]
[1750829901582,9.05885676,145.31,145.28,6.8794]
[1750829901885,4.98306493,145.3,145.28,6.8794]
[1750829902085,9.05885676,145.31,145.28,6.8794]
[1750829902287,4.98323996,145.3,145.29,6.8791]
[1750829904289,4.43653224,145.31,145.29,6.8791]
[1750829904590,43.67825676,145.32,145.29,6.8791]
[1750829904791,9.40319926,145.31,145.29,6.8791]
[1750829904989,43.67825676,145.32,145.29,6.8791]
[1750829905180,9.40319926,145.31,145.29,6.8791]
[1750829905385,43.67825676,145.32,145.29,6.8791]
[1750829905586,9.40319926,145.31,145.29,6.8791]
[1750829905789,43.67947939,145.32,145.29,6.8791]
[1750829905987,9.40319981,145.31,145.29,6.8791]
[1750829906193,34.62,145.32,145.29,2.18147939]